[Event "Titled Tuesday Blitz May 16 Late 2023"]
[White "Iliaguev, Nisim"]
[Black "Mickiewicz, Piotr"]
[WhiteFideId "2817276"]
[BlackFideId "1114891"]
[WhiteElo "2241"]
[BlackElo "2246"]
[Result "1/2-1/2"]
[Round "04"]
[TimeControl "180+2"]
[Date "2023.05.16"]
[WhiteClock "0:00:08"]
[BlackClock "0:00:06"]

1. d4 {[%clk 0:03:00]}  Nf6 {[%clk 0:02:58]} 2. g3 {[%clk 0:03:01]}  c5 {[%clk 0:02:56]} 3. Nf3 {[%clk 0:03:01]}  cxd4 {[%clk 0:02:54]} 4. Nxd4 {[%clk 0:03:02]}  e5 {[%clk 0:02:54]} 5. Nb3 {[%clk 0:03:02]}  d5 {[%clk 0:02:53]} 6. Bg2 {[%clk 0:03:03]}  Be7 {[%clk 0:02:44]} 7. O-O {[%clk 0:03:02]}  O-O {[%clk 0:02:43]} 8. Bg5 {[%clk 0:03:01]}  Nbd7 {[%clk 0:02:17]} 9. N1d2 {[%clk 0:02:52]}  h6 {[%clk 0:02:16]} 10. Bxf6 {[%clk 0:02:52]}  Nxf6 {[%clk 0:02:16]} 11. c4 {[%clk 0:02:52]}  d4 {[%clk 0:02:14]} 12. Ne4 {[%clk 0:02:41]}  Nxe4 {[%clk 0:02:10]} 13. Bxe4 {[%clk 0:02:42]}  Be6 {[%clk 0:02:07]} 14. Rc1 {[%clk 0:02:41]}  Qc7 {[%clk 0:02:05]} 15. Qd3 {[%clk 0:02:32]}  Rfd8 {[%clk 0:02:04]} 16. Rfd1 {[%clk 0:02:27]}  Rac8 {[%clk 0:02:02]} 17. Bf5 {[%clk 0:02:16]}  Bxf5 {[%clk 0:01:48]} 18. Qxf5 {[%clk 0:02:16]}  g6 {[%clk 0:01:48]} 19. Qd3 {[%clk 0:02:09]}  f5 {[%clk 0:01:38]} 20. c5 {[%clk 0:02:09]}  Bg5 {[%clk 0:01:35]} 21. Rc2 {[%clk 0:02:06]}  Qf7 {[%clk 0:01:29]} 22. Na5 {[%clk 0:01:52]}  e4 {[%clk 0:01:21]} 23. Qb5 {[%clk 0:01:49]}  b6 {[%clk 0:01:20]} 24. Nc6 {[%clk 0:01:39]}  Rxc6 {[%clk 0:00:52]} 25. Qxc6 {[%clk 0:01:38]}  d3 {[%clk 0:00:53]} 26. exd3 {[%clk 0:01:31]}  exd3 {[%clk 0:00:54]} 27. Rc3 {[%clk 0:01:27]}  d2 {[%clk 0:00:52]} 28. cxb6 {[%clk 0:01:20]}  axb6 {[%clk 0:00:53]} 29. f4 {[%clk 0:01:08]}  Bf6 {[%clk 0:00:51]} 30. Rc2 {[%clk 0:01:03]}  Bd4+ {[%clk 0:00:50]} 31. Kg2 {[%clk 0:00:57]}  Be3 {[%clk 0:00:49]} 32. Qf3 {[%clk 0:00:53]}  Qe6 {[%clk 0:00:39]} 33. Rc3 {[%clk 0:00:50]}  Bc5 {[%clk 0:00:35]} 34. a3 {[%clk 0:00:44]}  Re8 {[%clk 0:00:26]} 35. b4 {[%clk 0:00:39]}  Qe2+ {[%clk 0:00:25]} 36. Qxe2 {[%clk 0:00:38]}  Rxe2+ {[%clk 0:00:26]} 37. Kh3 {[%clk 0:00:36]}  Be3 {[%clk 0:00:19]} 38. Rxe3 {[%clk 0:00:35]}  Rxe3 {[%clk 0:00:19]} 39. Rxd2 {[%clk 0:00:36]}  Rxa3 {[%clk 0:00:19]} 40. Rd6 {[%clk 0:00:36]}  Kg7 {[%clk 0:00:19]} 41. Rxb6 {[%clk 0:00:36]}  Rb3 {[%clk 0:00:20]} 42. Kh4 {[%clk 0:00:32]}  Rb2 {[%clk 0:00:20]} 43. h3 {[%clk 0:00:32]}  Rb3 {[%clk 0:00:20]} 44. g4 {[%clk 0:00:31]}  fxg4 {[%clk 0:00:12]} 45. hxg4 {[%clk 0:00:32]}  Rb1 {[%clk 0:00:10]} 46. b5 {[%clk 0:00:31]}  Kf7 {[%clk 0:00:09]} 47. Rb7+ {[%clk 0:00:30]}  Kf6 {[%clk 0:00:09]} 48. b6 {[%clk 0:00:28]}  g5+ {[%clk 0:00:09]} 49. fxg5+ {[%clk 0:00:28]}  hxg5+ {[%clk 0:00:10]} 50. Kg3 {[%clk 0:00:29]}  Rb3+ {[%clk 0:00:09]} 51. Kf2 {[%clk 0:00:29]}  Kg6 {[%clk 0:00:09]} 52. Rb8 {[%clk 0:00:29]}  Rb4 {[%clk 0:00:09]} 53. b7 {[%clk 0:00:29]}  Kg7 {[%clk 0:00:09]} 54. Ke3 {[%clk 0:00:28]}  Rb1 {[%clk 0:00:09]} 55. Ke4 {[%clk 0:00:28]}  Re1+ {[%clk 0:00:10]} 56. Kf5 {[%clk 0:00:28]}  Rb1 {[%clk 0:00:10]} 57. Kxg5 {[%clk 0:00:29]}  Rb5+ {[%clk 0:00:11]} 58. Kh4 {[%clk 0:00:29]}  Rb2 {[%clk 0:00:12]} 59. Kg5 {[%clk 0:00:28]}  Rb1 {[%clk 0:00:13]} 60. Kf5 {[%clk 0:00:26]}  Rb5+ {[%clk 0:00:14]} 61. Ke4 {[%clk 0:00:26]}  Rb1 {[%clk 0:00:15]} 62. g5 {[%clk 0:00:25]}  Re1+ {[%clk 0:00:15]} 63. Kd5 {[%clk 0:00:25]}  Rd1+ {[%clk 0:00:15]} 64. Kc4 {[%clk 0:00:26]}  Rc1+ {[%clk 0:00:16]} 65. Kd3 {[%clk 0:00:24]}  Rb1 {[%clk 0:00:16]} 66. Kd4 {[%clk 0:00:19]}  Rb4+ {[%clk 0:00:16]} 67. Kc5 {[%clk 0:00:20]}  Rb1 {[%clk 0:00:17]} 68. Kd6 {[%clk 0:00:18]}  Rd1+ {[%clk 0:00:17]} 69. Ke6 {[%clk 0:00:18]}  Re1+ {[%clk 0:00:17]} 70. Kf5 {[%clk 0:00:19]}  Rf1+ {[%clk 0:00:17]} 71. Kg4 {[%clk 0:00:19]}  Rb1 {[%clk 0:00:18]} 72. g6 {[%clk 0:00:15]}  Rb4+ {[%clk 0:00:18]} 73. Kf5 {[%clk 0:00:15]}  Rb5+ {[%clk 0:00:18]} 74. Ke6 {[%clk 0:00:15]}  Rb1 {[%clk 0:00:19]} 75. Kd7 {[%clk 0:00:16]}  Rd1+ {[%clk 0:00:19]} 76. Kc7 {[%clk 0:00:16]}  Rc1+ {[%clk 0:00:20]} 77. Kd7 {[%clk 0:00:17]}  Rd1+ {[%clk 0:00:20]} 78. Ke6 {[%clk 0:00:17]}  Re1+ {[%clk 0:00:20]} 79. Kf5 {[%clk 0:00:18]}  Rb1 {[%clk 0:00:21]} 80. Ke4 {[%clk 0:00:18]}  Re1+ {[%clk 0:00:20]} 81. Kd3 {[%clk 0:00:19]}  Rb1 {[%clk 0:00:21]} 82. Kc2 {[%clk 0:00:20]}  Rb6 {[%clk 0:00:21]} 83. Kc1 {[%clk 0:00:18]}  Rb5 {[%clk 0:00:21]} 84. Kc2 {[%clk 0:00:19]}  Rb4 {[%clk 0:00:21]} 85. Kc3 {[%clk 0:00:19]}  Rb6 {[%clk 0:00:21]} 86. Kc4 {[%clk 0:00:20]}  Rb1 {[%clk 0:00:22]} 87. Kc5 {[%clk 0:00:20]}  Rc1+ {[%clk 0:00:22]} 88. Kd4 {[%clk 0:00:21]}  Rd1+ {[%clk 0:00:22]} 89. Kc3 {[%clk 0:00:22]}  Rb1 {[%clk 0:00:23]} 90. Kd2 {[%clk 0:00:21]}  Rb6 {[%clk 0:00:23]} 91. Ke2 {[%clk 0:00:21]}  Rb5 {[%clk 0:00:24]} 92. Ke3 {[%clk 0:00:22]}  Rb4 {[%clk 0:00:24]} 93. Kf3 {[%clk 0:00:22]}  Rb1 {[%clk 0:00:25]} 94. Ke4 {[%clk 0:00:22]}  Rb5 {[%clk 0:00:24]} 95. Kd4 {[%clk 0:00:14]}  Rb1 {[%clk 0:00:25]} 96. Kc4 {[%clk 0:00:13]}  Rc1+ {[%clk 0:00:24]} 97. Kb3 {[%clk 0:00:14]}  Rb1+ {[%clk 0:00:25]} 98. Ka2 {[%clk 0:00:15]}  Rb6 {[%clk 0:00:25]} 99. Ka3 {[%clk 0:00:15]}  Rb5 {[%clk 0:00:25]} 100. Ka4 {[%clk 0:00:16]}  Rb1 {[%clk 0:00:25]} 101. Ka3 {[%clk 0:00:14]}  Rb6 {[%clk 0:00:23]} 102. Ka2 {[%clk 0:00:13]}  Rb5 {[%clk 0:00:23]} 103. Ka1 {[%clk 0:00:13]}  Rb4 {[%clk 0:00:23]} 104. Ka2 {[%clk 0:00:14]}  Rb5 {[%clk 0:00:23]} 105. Ka3 {[%clk 0:00:14]}  Rb6 {[%clk 0:00:23]} 106. Ka4 {[%clk 0:00:15]}  Rb1 {[%clk 0:00:23]} 107. Ka5 {[%clk 0:00:16]}  Ra1+ {[%clk 0:00:24]} 108. Kb6 {[%clk 0:00:16]}  Rb1+ {[%clk 0:00:24]} 109. Kc7 {[%clk 0:00:17]}  Rc1+ {[%clk 0:00:25]} 110. Kd6 {[%clk 0:00:18]}  Rd1+ {[%clk 0:00:25]} 111. Ke5 {[%clk 0:00:18]}  Rb1 {[%clk 0:00:26]} 112. Kf4 {[%clk 0:00:19]}  Rb2 {[%clk 0:00:25]} 113. Kf5 {[%clk 0:00:20]}  Rb3 {[%clk 0:00:26]} 114. Re8 {[%clk 0:00:09]}  Rb5+ {[%clk 0:00:23]} 115. Re5 {[%clk 0:00:07]}  Rxb7 {[%clk 0:00:24]} 116. Kg5 {[%clk 0:00:08]}  Kg8 {[%clk 0:00:21]} 117. Kh6 {[%clk 0:00:05]}  Rb8 {[%clk 0:00:21]} 118. Re7 {[%clk 0:00:06]}  Ra8 {[%clk 0:00:21]} 119. Rh7 {[%clk 0:00:06]}  Rb8 {[%clk 0:00:20]} 120. Rg7+ {[%clk 0:00:07]}  Kh8 {[%clk 0:00:18]} 121. Rc7 {[%clk 0:00:07]}  Kg8 {[%clk 0:00:18]} 122. Rd7 {[%clk 0:00:07]}  Ra8 {[%clk 0:00:18]} 123. Rd5 {[%clk 0:00:08]}  Rb8 {[%clk 0:00:18]} 124. Rf5 {[%clk 0:00:08]}  Ra8 {[%clk 0:00:18]} 125. Rf6 {[%clk 0:00:09]}  Rb8 {[%clk 0:00:18]} 126. Rf7 {[%clk 0:00:09]}  Rc8 {[%clk 0:00:18]} 127. Rg7+ {[%clk 0:00:09]}  Kh8 {[%clk 0:00:17]} 128. Rd7 {[%clk 0:00:10]}  Kg8 {[%clk 0:00:17]} 129. Kg5 {[%clk 0:00:10]}  Rc1 {[%clk 0:00:15]} 130. Rd8+ {[%clk 0:00:10]}  Kg7 {[%clk 0:00:14]} 131. Rd7+ {[%clk 0:00:11]}  Kg8 {[%clk 0:00:14]} 132. Rd5 {[%clk 0:00:11]}  Rg1+ {[%clk 0:00:12]} 133. Kf6 {[%clk 0:00:12]}  Rf1+ {[%clk 0:00:12]} 134. Rf5 {[%clk 0:00:12]}  Ra1 {[%clk 0:00:12]} 135. Re5 {[%clk 0:00:08]}  Ra6+ {[%clk 0:00:12]} 136. Re6 {[%clk 0:00:08]}  Ra8 {[%clk 0:00:12]} 137. Re7 {[%clk 0:00:09]}  Ra6+ {[%clk 0:00:12]} 138. Re6 {[%clk 0:00:09]}  Ra8 {[%clk 0:00:10]} 139. Rb6 {[%clk 0:00:09]}  Rc8 {[%clk 0:00:10]} 140. g7 {[%clk 0:00:09]}  Rd8 {[%clk 0:00:07]} 141. Re6 {[%clk 0:00:09]}  Rc8 {[%clk 0:00:06]} 142. Kg6 {[%clk 0:00:10]}  Rc6 {[%clk 0:00:06]} 143. Rxc6 {[%clk 0:00:08]} 1/2-1/2


[Site "https://www.chess.com"]

[Event "Titled Tuesday Blitz May 16 Late 2023"]
[White "Krasteva, Beloslava"]
[Black "Manukyan, Sargis A."]
[WhiteFideId "2922029"]
[BlackFideId "13303970"]
[WhiteElo "2187"]
[BlackElo "2187"]
[Result "0-1"]
[Round "04"]
[TimeControl "180+2"]
[Date "2023.05.16"]
[WhiteClock "0:00:00"]
[BlackClock "0:00:40"]

1. c4 {[%clk 0:03:00]}  Nf6 {[%clk 0:02:55]} 2. d4 {[%clk 0:02:55]}  e6 {[%clk 0:02:54]} 3. Nf3 {[%clk 0:02:49]}  d5 {[%clk 0:02:54]} 4. Bg5 {[%clk 0:02:48]}  Be7 {[%clk 0:02:54]} 5. Nc3 {[%clk 0:02:40]}  O-O {[%clk 0:02:54]} 6. e3 {[%clk 0:02:37]}  h6 {[%clk 0:02:54]} 7. Bxf6 {[%clk 0:02:33]}  Bxf6 {[%clk 0:02:55]} 8. Ne5 {[%clk 0:02:23]}  Nd7 {[%clk 0:02:48]} 9. f4 {[%clk 0:02:22]}  Nxe5 {[%clk 0:02:46]} 10. fxe5 {[%clk 0:02:22]}  Bh4+ {[%clk 0:02:46]} 11. g3 {[%clk 0:02:20]}  Bg5 {[%clk 0:02:47]} 12. Qd2 {[%clk 0:01:59]}  dxc4 {[%clk 0:02:47]} 13. h4 {[%clk 0:01:57]}  Be7 {[%clk 0:02:46]} 14. O-O-O {[%clk 0:01:50]}  c5 {[%clk 0:02:46]} 15. Bxc4 {[%clk 0:01:46]}  cxd4 {[%clk 0:02:45]} 16. exd4 {[%clk 0:01:46]}  Qc7 {[%clk 0:02:43]} 17. Bd3 {[%clk 0:01:41]}  Bd7 {[%clk 0:02:43]} 18. g4 {[%clk 0:01:33]}  b5 {[%clk 0:02:42]} 19. Kb1 {[%clk 0:01:30]}  Bc6 {[%clk 0:02:15]} 20. Rh3 {[%clk 0:01:19]}  f6 {[%clk 0:01:52]} 21. exf6 {[%clk 0:00:33]}  Bxf6 {[%clk 0:01:53]} 22. Qe3 {[%clk 0:00:30]}  e5 {[%clk 0:01:48]} 23. d5 {[%clk 0:00:28]}  b4 {[%clk 0:01:42]} 24. dxc6 {[%clk 0:00:22]}  bxc3 {[%clk 0:01:41]} 25. g5 {[%clk 0:00:20]}  Be7 {[%clk 0:01:26]} 26. Bc4+ {[%clk 0:00:20]}  Kh8 {[%clk 0:01:25]} 27. gxh6 {[%clk 0:00:21]}  Bf6 {[%clk 0:01:07]} 28. hxg7+ {[%clk 0:00:19]}  Bxg7 {[%clk 0:01:04]} 29. Qg5 {[%clk 0:00:19]}  Qxc6 {[%clk 0:01:03]} 30. Rg1 {[%clk 0:00:12]}  c2+ {[%clk 0:00:57]} 31. Ka1 {[%clk 0:00:10]}  Qh6 {[%clk 0:00:57]} 32. Qxh6+ {[%clk 0:00:07]}  Bxh6 {[%clk 0:00:58]} 33. Rc3 {[%clk 0:00:04]}  c1=Q+ {[%clk 0:00:58]} 34. Rcxc1 {[%clk 0:00:04]}  Bxc1 {[%clk 0:00:59]} 35. Rxc1 {[%clk 0:00:04]}  Rac8 {[%clk 0:00:59]} 36. b3 {[%clk 0:00:04]}  e4 {[%clk 0:00:57]} 37. Re1 {[%clk 0:00:04]}  Rce8 {[%clk 0:00:57]} 38. Kb2 {[%clk 0:00:04]}  Rf4 {[%clk 0:00:56]} 39. h5 {[%clk 0:00:04]}  Rh4 {[%clk 0:00:55]} 40. Re3 {[%clk 0:00:02]}  Rxh5 {[%clk 0:00:55]} 41. Bf7 {[%clk 0:00:02]}  Rh2+ {[%clk 0:00:55]} 42. Kc3 {[%clk 0:00:02]}  Re7 {[%clk 0:00:56]} 43. Bg6 {[%clk 0:00:02]}  Rxa2 {[%clk 0:00:52]} 44. Bxe4 {[%clk 0:00:02]}  Rh2 {[%clk 0:00:51]} 45. Kd4 {[%clk 0:00:01]}  Rh4 {[%clk 0:00:51]} 46. Kd5 {[%clk 0:00:01]}  Rh5+ {[%clk 0:00:46]} 47. Kd4 {[%clk 0:00:01]}  Rd7+ {[%clk 0:00:46]} 48. Kc3 {[%clk 0:00:02]}  Rc7+ {[%clk 0:00:46]} 49. Kb2 {[%clk 0:00:02]}  Re7 {[%clk 0:00:46]} 50. Kc3 {[%clk 0:00:02]}  Rg5 {[%clk 0:00:44]} 51. Kd3 {[%clk 0:00:02]}  Kg7 {[%clk 0:00:43]} 52. Kc3 {[%clk 0:00:02]}  Rc7+ {[%clk 0:00:41]} 53. Kd3 {[%clk 0:00:02]}  Re7 {[%clk 0:00:41]} 54. Kc3 {[%clk 0:00:01]}  Rg4 {[%clk 0:00:41]} 55. Kd3 {[%clk 0:00:02]}  Kf8 {[%clk 0:00:41]} 56. Re2 {[%clk 0:00:02]}  Rf4 {[%clk 0:00:38]} 57. Re3 {[%clk 0:00:02]}  Rf6 {[%clk 0:00:38]} 58. Rf3 {[%clk 0:00:02]}  Rxf3+ {[%clk 0:00:37]} 59. Bxf3 {[%clk 0:00:03]}  Ke8 {[%clk 0:00:37]} 60. Kc3 {[%clk 0:00:03]}  Kd8 {[%clk 0:00:38]} 61. Bd5 {[%clk 0:00:03]}  Kc7 {[%clk 0:00:39]} 62. Bc4 {[%clk 0:00:03]}  Kb6 {[%clk 0:00:40]} 63. Bd3 {[%clk 0:00:03]}  Rg7 {[%clk 0:00:41]} 64. Bc4 {[%clk 0:00:03]}  Rg5 {[%clk 0:00:42]} 65. Bd3 {[%clk 0:00:03]}  Kc5 {[%clk 0:00:41]} 66. Bc4 {[%clk 0:00:03]}  Rg3+ {[%clk 0:00:40]} 67. Bd3 {[%clk 0:00:03]}  a5 {[%clk 0:00:41]} 68. Kc2 {[%clk 0:00:00]}  Kd4 {[%clk 0:00:40]} 0-1


[Site "https://www.chess.com"]

[Event "Titled Tuesday Blitz May 16 Late 2023"]
[White "TimGrutter03"]
[Black "Pasti, Aron"]
[BlackFideId "785857"]
[WhiteElo "2628"]
[BlackElo "2173"]
[Result "1-0"]
[Round "04"]
[TimeControl "180+2"]
[Date "2023.05.16"]
[WhiteClock "0:01:36"]
[BlackClock "0:01:33"]

1. e4 {[%clk 0:03:00]}  c5 {[%clk 0:02:56]} 2. Nf3 {[%clk 0:03:00]}  e6 {[%clk 0:02:54]} 3. g3 {[%clk 0:02:56]}  Nc6 {[%clk 0:02:54]} 4. Bg2 {[%clk 0:02:55]}  Nge7 {[%clk 0:02:42]} 5. O-O {[%clk 0:02:52]}  d5 {[%clk 0:02:41]} 6. exd5 {[%clk 0:02:49]}  Nxd5 {[%clk 0:02:42]} 7. d4 {[%clk 0:02:49]}  cxd4 {[%clk 0:02:40]} 8. Nxd4 {[%clk 0:02:50]}  Bc5 {[%clk 0:02:37]} 9. Nxc6 {[%clk 0:02:49]}  bxc6 {[%clk 0:02:38]} 10. c4 {[%clk 0:02:48]}  Ne7 {[%clk 0:02:38]} 11. Qxd8+ {[%clk 0:02:45]}  Kxd8 {[%clk 0:02:39]} 12. Rd1+ {[%clk 0:02:42]}  Bd7 {[%clk 0:02:38]} 13. Nc3 {[%clk 0:02:37]}  f5 {[%clk 0:02:26]} 14. Bg5 {[%clk 0:02:32]}  Ke8 {[%clk 0:02:25]} 15. Na4 {[%clk 0:02:18]}  Bb6 {[%clk 0:02:17]} 16. Be3 {[%clk 0:02:15]}  Rb8 {[%clk 0:02:10]} 17. b3 {[%clk 0:01:55]}  Ng6 {[%clk 0:01:43]} 18. Rd6 {[%clk 0:01:40]}  Ke7 {[%clk 0:01:40]} 19. Rad1 {[%clk 0:01:38]}  Bxe3 {[%clk 0:01:33]} 20. Rxd7+ {[%clk 0:01:36]} 1-0


[Site "https://www.chess.com"]

[Event "Titled Tuesday Blitz May 16 Late 2023"]
[White "cryptoguru02"]
[Black "Moral Garcia, Serafin"]
[BlackFideId "2201925"]
[WhiteElo "2611"]
[BlackElo "2274"]
[Result "1/2-1/2"]
[Round "04"]
[TimeControl "180+2"]
[Date "2023.05.16"]
[WhiteClock "0:00:33"]
[BlackClock "0:00:18"]

1. d4 {[%clk 0:03:00]}  Nf6 {[%clk 0:02:59]} 2. c4 {[%clk 0:03:00]}  g6 {[%clk 0:02:59]} 3. Nc3 {[%clk 0:03:00]}  d5 {[%clk 0:02:59]} 4. Bf4 {[%clk 0:02:59]}  Bg7 {[%clk 0:02:58]} 5. e3 {[%clk 0:02:58]}  O-O {[%clk 0:02:56]} 6. Rc1 {[%clk 0:02:58]}  c5 {[%clk 0:02:56]} 7. dxc5 {[%clk 0:02:58]}  Qa5 {[%clk 0:02:56]} 8. Nf3 {[%clk 0:02:58]}  dxc4 {[%clk 0:02:53]} 9. Bxc4 {[%clk 0:02:59]}  Nc6 {[%clk 0:02:48]} 10. O-O {[%clk 0:02:58]}  Qxc5 {[%clk 0:02:48]} 11. Bb3 {[%clk 0:02:58]}  Qa5 {[%clk 0:02:44]} 12. h3 {[%clk 0:02:52]}  Rd8 {[%clk 0:02:43]} 13. Qe2 {[%clk 0:02:51]}  Bf5 {[%clk 0:02:41]} 14. e4 {[%clk 0:02:50]}  Bd7 {[%clk 0:02:32]} 15. e5 {[%clk 0:02:49]}  Nh5 {[%clk 0:02:30]} 16. Bh2 {[%clk 0:02:46]}  Bh6 {[%clk 0:01:30]} 17. Rcd1 {[%clk 0:02:39]}  Ng7 {[%clk 0:01:27]} 18. Rd5 {[%clk 0:02:13]}  Qb6 {[%clk 0:01:25]} 19. Na4 {[%clk 0:02:07]}  Qa6 {[%clk 0:01:20]} 20. Qxa6 {[%clk 0:02:07]}  bxa6 {[%clk 0:01:20]} 21. Nc5 {[%clk 0:02:06]}  Be6 {[%clk 0:01:17]} 22. Rxd8+ {[%clk 0:02:02]}  Rxd8 {[%clk 0:01:16]} 23. Nxe6 {[%clk 0:02:00]}  Nxe6 {[%clk 0:01:16]} 24. Bxe6 {[%clk 0:01:53]}  fxe6 {[%clk 0:01:16]} 25. g4 {[%clk 0:01:45]}  Nb4 {[%clk 0:01:14]} 26. a3 {[%clk 0:01:41]}  Nd3 {[%clk 0:01:14]} 27. Rd1 {[%clk 0:01:41]}  Rd5 {[%clk 0:01:07]} 28. Kf1 {[%clk 0:01:35]}  Nxb2 {[%clk 0:01:04]} 29. Rb1 {[%clk 0:01:33]}  Nc4 {[%clk 0:01:02]} 30. Rb7 {[%clk 0:01:28]}  Kf7 {[%clk 0:01:01]} 31. Rxa7 {[%clk 0:01:26]}  Ra5 {[%clk 0:00:56]} 32. Nd4 {[%clk 0:01:14]}  Rxa3 {[%clk 0:00:56]} 33. Nc6 {[%clk 0:01:11]}  Bg5 {[%clk 0:00:54]} 34. Bg3 {[%clk 0:01:08]}  Nd2+ {[%clk 0:00:51]} 35. Kg2 {[%clk 0:01:08]}  Nf3 {[%clk 0:00:45]} 36. Nd8+ {[%clk 0:01:03]}  Ke8 {[%clk 0:00:45]} 37. Nxe6 {[%clk 0:01:03]}  Bh4 {[%clk 0:00:43]} 38. Nc7+ {[%clk 0:01:01]}  Kf7 {[%clk 0:00:43]} 39. e6+ {[%clk 0:00:57]}  Kf6 {[%clk 0:00:39]} 40. Rxa6 {[%clk 0:00:55]}  Rxa6 {[%clk 0:00:39]} 41. Nxa6 {[%clk 0:00:56]}  Bxg3 {[%clk 0:00:30]} 42. Kxf3 {[%clk 0:00:53]}  Bd6 {[%clk 0:00:30]} 43. Ke4 {[%clk 0:00:48]}  Kxe6 {[%clk 0:00:30]} 44. Kd4 {[%clk 0:00:48]}  Kf6 {[%clk 0:00:27]} 45. h4 {[%clk 0:00:41]}  h5 {[%clk 0:00:24]} 46. f3 {[%clk 0:00:39]}  Bg3 {[%clk 0:00:24]} 47. Ke4 {[%clk 0:00:35]}  Bxh4 {[%clk 0:00:23]} 48. Nc7 {[%clk 0:00:34]}  hxg4 {[%clk 0:00:21]} 49. fxg4 {[%clk 0:00:35]}  Bg3 {[%clk 0:00:21]} 50. Nd5+ {[%clk 0:00:34]}  Kg5 {[%clk 0:00:20]} 51. Nxe7 {[%clk 0:00:33]}  Kxg4 {[%clk 0:00:18]} 52. Nxg6 {[%clk 0:00:33]} 1/2-1/2


[Site "https://www.chess.com"]

[Event "Titled Tuesday Blitz May 16 Late 2023"]
[White "Adan Bermudez, Sergio"]
[Black "Gatterer, Florian"]
[WhiteFideId "2292726"]
[BlackFideId "811688"]
[WhiteElo "2292"]
[BlackElo "2221"]
[Result "0-1"]
[Round "04"]
[TimeControl "180+2"]
[Date "2023.05.16"]
[WhiteClock "0:00:06"]
[BlackClock "0:00:07"]

1. c4 {[%clk 0:03:00]}  e6 {[%clk 0:02:59]} 2. Nc3 {[%clk 0:03:01]}  d5 {[%clk 0:02:59]} 3. e3 {[%clk 0:03:01]}  Nf6 {[%clk 0:02:58]} 4. Nf3 {[%clk 0:03:02]}  c5 {[%clk 0:02:58]} 5. cxd5 {[%clk 0:03:02]}  exd5 {[%clk 0:02:53]} 6. d4 {[%clk 0:03:02]}  Nc6 {[%clk 0:02:53]} 7. Bb5 {[%clk 0:02:58]}  cxd4 {[%clk 0:02:53]} 8. Nxd4 {[%clk 0:02:57]}  Bd7 {[%clk 0:02:53]} 9. O-O {[%clk 0:02:57]}  Bd6 {[%clk 0:02:51]} 10. b3 {[%clk 0:02:53]}  Qc7 {[%clk 0:02:37]} 11. Nf3 {[%clk 0:02:33]}  a6 {[%clk 0:02:23]} 12. Be2 {[%clk 0:02:31]}  Be6 {[%clk 0:02:16]} 13. Bb2 {[%clk 0:02:28]}  O-O {[%clk 0:02:15]} 14. Rc1 {[%clk 0:02:27]}  Qe7 {[%clk 0:02:14]} 15. Nd4 {[%clk 0:02:13]}  Nxd4 {[%clk 0:02:05]} 16. Qxd4 {[%clk 0:02:03]}  Rac8 {[%clk 0:02:05]} 17. Bf3 {[%clk 0:01:53]}  Rfd8 {[%clk 0:01:56]} 18. Rfd1 {[%clk 0:01:42]}  Bc5 {[%clk 0:01:39]} 19. Qh4 {[%clk 0:01:36]}  Ba3 {[%clk 0:01:35]} 20. Bxa3 {[%clk 0:01:20]}  Qxa3 {[%clk 0:01:34]} 21. Qd4 {[%clk 0:01:11]}  h6 {[%clk 0:00:50]} 22. Qd2 {[%clk 0:01:07]}  b5 {[%clk 0:00:41]} 23. h3 {[%clk 0:00:57]}  Kf8 {[%clk 0:00:36]} 24. Ne2 {[%clk 0:00:48]}  Rxc1 {[%clk 0:00:25]} 25. Rxc1 {[%clk 0:00:47]}  Rc8 {[%clk 0:00:25]} 26. Rxc8+ {[%clk 0:00:43]}  Bxc8 {[%clk 0:00:26]} 27. Nf4 {[%clk 0:00:42]}  Be6 {[%clk 0:00:23]} 28. Nd3 {[%clk 0:00:39]}  Qd6 {[%clk 0:00:18]} 29. Qb4 {[%clk 0:00:39]}  Qxb4 {[%clk 0:00:14]} 30. Nxb4 {[%clk 0:00:39]}  a5 {[%clk 0:00:14]} 31. Nc6 {[%clk 0:00:40]}  a4 {[%clk 0:00:15]} 32. bxa4 {[%clk 0:00:40]}  bxa4 {[%clk 0:00:15]} 33. a3 {[%clk 0:00:40]}  Nd7 {[%clk 0:00:12]} 34. Nb4 {[%clk 0:00:37]}  Nb6 {[%clk 0:00:11]} 35. Be2 {[%clk 0:00:29]}  Ke7 {[%clk 0:00:11]} 36. Kf1 {[%clk 0:00:30]}  Kd6 {[%clk 0:00:12]} 37. Ke1 {[%clk 0:00:30]}  Kc5 {[%clk 0:00:11]} 38. Kd2 {[%clk 0:00:30]}  Nc4+ {[%clk 0:00:11]} 39. Bxc4 {[%clk 0:00:31]}  Kxc4 {[%clk 0:00:12]} 40. Nc2 {[%clk 0:00:21]}  Kb3 {[%clk 0:00:11]} 41. Nd4+ {[%clk 0:00:21]}  Kxa3 {[%clk 0:00:11]} 42. Kc3 {[%clk 0:00:22]}  Ka2 {[%clk 0:00:09]} 43. f4 {[%clk 0:00:20]}  g6 {[%clk 0:00:08]} 44. Kb4 {[%clk 0:00:19]}  Kb2 {[%clk 0:00:08]} 45. g4 {[%clk 0:00:17]}  a3 {[%clk 0:00:07]} 46. Nb3 {[%clk 0:00:06]}  a2 {[%clk 0:00:07]} 0-1


[Site "https://www.chess.com"]

[Event "Titled Tuesday Blitz May 16 Late 2023"]
[White "Poltorak, Sebastian"]
[Black "Gutkin, Ilya"]
[WhiteFideId "1199498"]
[BlackFideId "16203470"]
[WhiteElo "2195"]
[BlackElo "2265"]
[Result "1-0"]
[Round "04"]
[TimeControl "180+2"]
[Date "2023.05.16"]
[WhiteClock "0:00:35"]
[BlackClock "0:00:00"]

1. e4 {[%clk 0:02:29]}  e6 {[%clk 0:02:59]} 2. d4 {[%clk 0:02:28]}  d5 {[%clk 0:02:59]} 3. Bd3 {[%clk 0:02:29]}  c5 {[%clk 0:02:59]} 4. exd5 {[%clk 0:02:28]}  exd5 {[%clk 0:02:59]} 5. Nf3 {[%clk 0:02:27]}  Nc6 {[%clk 0:02:59]} 6. O-O {[%clk 0:02:26]}  Nf6 {[%clk 0:02:58]} 7. Bg5 {[%clk 0:02:25]}  Be7 {[%clk 0:02:52]} 8. dxc5 {[%clk 0:02:25]}  Bxc5 {[%clk 0:02:52]} 9. Re1+ {[%clk 0:02:22]}  Be6 {[%clk 0:02:52]} 10. Bf5 {[%clk 0:02:17]}  O-O {[%clk 0:02:51]} 11. Bxe6 {[%clk 0:02:12]}  fxe6 {[%clk 0:02:52]} 12. Rxe6 {[%clk 0:02:02]}  Qd7 {[%clk 0:01:49]} 13. Re2 {[%clk 0:01:51]}  Ng4 {[%clk 0:01:38]} 14. Bh4 {[%clk 0:01:36]}  Rae8 {[%clk 0:00:56]} 15. Nc3 {[%clk 0:01:31]}  Rxe2 {[%clk 0:00:54]} 16. Nxe2 {[%clk 0:01:27]}  Qf5 {[%clk 0:00:44]} 17. h3 {[%clk 0:01:18]}  Nf6 {[%clk 0:00:39]} 18. c3 {[%clk 0:01:16]}  Ne4 {[%clk 0:00:38]} 19. Ned4 {[%clk 0:01:08]}  Qh5 {[%clk 0:00:25]} 20. Bg3 {[%clk 0:01:05]}  Nxg3 {[%clk 0:00:24]} 21. fxg3 {[%clk 0:01:06]}  Qg6 {[%clk 0:00:17]} 22. Kh2 {[%clk 0:01:03]}  Re8 {[%clk 0:00:13]} 23. Nb3 {[%clk 0:01:03]}  Qd6 {[%clk 0:00:09]} 24. Nxc5 {[%clk 0:01:02]}  Qxc5 {[%clk 0:00:09]} 25. Qd2 {[%clk 0:01:01]}  Rd8 {[%clk 0:00:07]} 26. Rd1 {[%clk 0:01:00]}  h6 {[%clk 0:00:06]} 27. Nd4 {[%clk 0:00:59]}  Nxd4 {[%clk 0:00:06]} 28. Qxd4 {[%clk 0:00:59]}  Qxd4 {[%clk 0:00:07]} 29. Rxd4 {[%clk 0:01:00]}  Kf7 {[%clk 0:00:06]} 30. Kg1 {[%clk 0:00:52]}  Ke6 {[%clk 0:00:06]} 31. Kf2 {[%clk 0:00:52]}  Re8 {[%clk 0:00:02]} 32. g4 {[%clk 0:00:48]}  b5 {[%clk 0:00:02]} 33. a4 {[%clk 0:00:47]}  a6 {[%clk 0:00:03]} 34. h4 {[%clk 0:00:45]}  g5 {[%clk 0:00:03]} 35. g3 {[%clk 0:00:44]}  Rb8 {[%clk 0:00:01]} 36. Rb4 {[%clk 0:00:43]}  Rb6 {[%clk 0:00:01]} 37. Ke3 {[%clk 0:00:43]}  Ke5 {[%clk 0:00:01]} 38. h5 {[%clk 0:00:43]}  Rb7 {[%clk 0:00:01]} 39. Kd3 {[%clk 0:00:43]}  Rb8 {[%clk 0:00:01]} 40. b3 {[%clk 0:00:39]}  Rb6 {[%clk 0:00:02]} 41. Ke3 {[%clk 0:00:38]}  Rb7 {[%clk 0:00:02]} 42. c4 {[%clk 0:00:36]}  d4+ {[%clk 0:00:02]} 43. Kd2 {[%clk 0:00:36]}  Rf7 {[%clk 0:00:01]} 44. axb5 {[%clk 0:00:34]}  Rf2+ {[%clk 0:00:00]} 45. Ke1 {[%clk 0:00:35]} 1-0


[Site "https://www.chess.com"]